lending/lending_fUSD_20260306
["ID","MTS","AMOUNT","RATE_DAILY","PERIOD"]
[407760889,1772771444673,-500.0,0.00019973,2]
[407760890,1772771444683,-500.0,0.00019973,2]
[407760891,1772771444692,-168.9717679,0.00019973,2]
[407760892,1772771444702,-510.95525373,0.00019973,2]
[407760893,1772771444711,-547.9842787,0.00019973,2]
[407760894,1772771444721,-500.0,0.00019973,2]
[407760895,1772771444730,-500.0,0.00019973,2]
[407760896,1772771444740,-500.0,0.00019973,2]
[407760897,1772771444750,-500.0,0.00019973,2]
[407760898,1772771444759,-500.52071293,0.00019973,2]
[407760899,1772771444773,-500.0,0.00019973,2]
[407760900,1772771444783,-500.0,0.00019973,2]
[407760901,1772771444793,-500.0,0.00019973,2]
[407760902,1772771444802,-500.0,0.00019973,2]
[407760903,1772771444813,-500.0,0.00019973,2]
[407760904,1772771444823,-500.0,0.00019973,2]
[407760905,1772771444832,-500.0,0.00019973,2]
[407760906,1772771444842,-500.0,0.00019973,2]
[407760907,1772771444851,-500.0,0.00019973,2]
[407760908,1772771444860,-500.0,0.00019973,2]
[407760909,1772771444870,-500.0,0.00019973,2]
[407760910,1772771444879,-331.25166911,0.00019973,2]
[407760911,1772771444888,-500.0,0.00019973,2]
[407760912,1772771444897,-500.0,0.00019973,2]
[407760913,1772771444907,-500.0,0.00019973,2]
[407760914,1772771444916,-500.0,0.00019973,2]
[407760915,1772771444925,-500.0,0.00019973,2]
[407760916,1772771444935,-500.46240701,0.00019973,2]
[407760917,1772771444944,-192.76186009,0.00019973,2]
[407760918,1772771444954,-346.97134817,0.00019973,2]
[407760919,1772771444963,-616.22111434,0.00019973,2]
[407760920,1772771444972,-192.69301348,0.00019973,2]
[407760921,1772771444982,-346.50057683,0.00019973,2]
[407760922,1772771444992,-229.64083117,0.0001998,2]
[407760923,1772771445002,-474.80483861,0.00019987,2]
[407760924,1772771445011,-179.37004762,0.0001999,2]
[407760925,1772771445021,-179.37004762,0.0001999,2]
[407760926,1772771445031,-500.0,0.00019997,2]
[407760927,1772771445041,-151.0,0.00019997,2]
[407760928,1772771445050,-158.413,0.00019999,2]
[407760929,1772771445059,-500.0,0.00019999,2]
[407760930,1772771445069,-500.0,0.00019999,2]
[407760931,1772771445079,-500.0,0.00019999,2]
[407760932,1772771445089,-632.5100037,0.00019999,2]
[407760933,1772771445098,-500.0,0.00019999,2]
[407760934,1772771445108,-500.0,0.00019999,2]
[407760935,1772771445118,-500.0,0.00019999,2]
[407760936,1772771445128,-341.64411572,0.00019999,2]
[407760937,1772771445137,-500.0,0.00019999,2]
[407760938,1772771445147,-500.0,0.00019999,2]
[407760939,1772771445157,-500.0,0.00019999,2]
[407760940,1772771445166,-507.77838834,0.00019999,2]
[407760941,1772771445175,-500.0,0.00019999,2]
[407760942,1772771445184,-169.70241436,0.00019999,2]
[407760943,1772771445193,-500.0,0.00019999,2]
[407760944,1772771445203,-500.0,0.00019999,2]
[407760945,1772771445212,-500.0,0.00019999,2]
[407760946,1772771445221,-500.0,0.00019999,2]
[407760947,1772771445231,-1051.8256204,0.00019999,5]
[407760948,1772771445241,-150.0,0.00019999,2]
[407760949,1772771445250,-232.72199376,0.00019999,2]
[407760950,1772771445259,-3000.0,0.0002,7]
[407760951,1772771445268,-1122307.25139496,0.0002,2]
[407760952,1772771445950,-1652.65439334,0.0002,2]
[407760953,1772771446155,-1277.27139037,0.0002,2]
[407760954,1772771446318,-6403.37332162,0.0002,2]
[407760955,1772771446329,-509.65562623,0.0002,2]
[407760956,1772771446362,-5990.0,0.00019562,2]
[407760957,1772771446371,-77553.82407554,0.0002,2]
[407760959,1772771446381,-52653.06518398,0.0002,2]
[407760961,1772771446393,-1425.82817633,0.0002,2]
[407760963,1772771446404,-2166967.19034291,0.0002,2]
[407760964,1772771446670,-358.94539511,0.000199,2]
[407760965,1772771446680,-427.84244351,0.0002,2]
[407760966,1772771446694,-662.02618603,0.0002,2]
[407760967,1772771446705,-5706.705,0.0002,2]
[407760968,1772771446738,-50.72529527,0.0002,2]
[407760969,1772771446881,-150.65168144,0.0002,2]
[407760970,1772771446891,-8390.1359229,0.0002,2]
[407760971,1772771446980,-3240.0,0.000178,2]
[407760972,1772771446990,-3266.00362237,0.0002,2]
[407760973,1772771447001,-5025.91549434,0.0002,2]
[407760974,1772771447314,1065.382331,0.00015538,2]
[407760975,1772771448266,2895.13,0.00015855,2]
[407760976,1772771451234,7104.88,0.00015616,2]
[407760977,1772771451259,10000.01,0.00015616,2]
[407760978,1772771451284,10000.01,0.00015616,2]
[407760979,1772771451308,10000.01,0.00015616,2]
[407760980,1772771451332,10000.01,0.00015616,2]
[407760981,1772771451356,10000.01,0.00015616,2]
[407760982,1772771451381,10000.01,0.00015616,2]
[407760983,1772771451404,10000.01,0.00015616,2]
[407760984,1772771451429,10000.01,0.00015616,2]
[407760985,1772771451457,10000.01,0.00015616,2]
[407760986,1772771451481,3934.627669,0.00015616,2]
[407760987,1772771451505,5000.01,0.00015616,2]
[407760988,1772771451529,5000.01,0.00015616,2]
[407760989,1772771451552,5000.01,0.00015616,2]
[407760990,1772771451576,5000.01,0.00015616,2]
[407760991,1772771451599,5000.01,0.00015616,2]
[407760992,1772771451622,5000.01,0.00015616,2]
[407760993,1772771451645,5000.01,0.00015616,2]
[407760994,1772771451670,5000.01,0.00015616,2]
[407760995,1772771489700,506.0,0.00014,2]
[407760996,1772771492745,165.083,0.00015304,2]
[407760997,1772771492874,1666.625,0.00015304,2]
[407760998,1772771498148,-151.0,0.00015613,2]
[407760999,1772771500332,-300.0,0.00015615,2]
[407761000,1772771514834,250.0,0.00015,2]
[407761001,1772771517441,-250.0,0.00015615,2]
[407761002,1772771517469,-193.96734881,0.00015615,2]
[407761003,1772771521426,300.0,0.00015615,2]
[407761004,1772771535915,500.0,0.00012,2]
[407761005,1772771535947,500.0,0.00012,2]
[407761006,1772771536220,500.0,0.00012,2]
[407761007,1772771536300,500.0,0.00012,2]
[407761008,1772771536720,500.0,0.00012,2]
[407761009,1772771536780,500.0,0.00012,2]
[407761010,1772771537018,500.0,0.00012,2]
[407761011,1772771537045,501.51316175,0.00012,2]
[407761012,1772771537280,500.0,0.00010606,2]
[407761013,1772771537406,498.49683825,0.00010606,2]
[407761014,1772771537429,1.50316175,0.00010606,2]
[407761015,1772771537491,500.0,0.00012,2]
[407761016,1772771537762,500.0,0.00012,2]
[407761017,1772771537987,500.0,0.00012,2]
[407761018,1772771538241,500.0,0.00012,2]
[407761019,1772771538266,500.0,0.00010606,2]
[407761020,1772771538410,719.36381414,0.00010606,2]
[407761021,1772771538522,500.0,0.00010606,2]
[407761022,1772771538721,500.0,0.00012,2]
[407761023,1772771539021,500.0,0.00010606,2]
[407761024,1772771539182,279.14302411,0.00010606,2]
[407761025,1772771539204,220.85697589,0.00010606,2]
[407761026,1772771539498,818.01381429,0.00010606,2]
[407761027,1772771539654,500.0,0.00010606,2]
[407761028,1772771540119,657.57261614,0.00010606,2]
[407761029,1772771540735,2803.56659368,0.00015516,2]
[407761030,1772771540757,1187.98391851,0.00015516,2]
[407761031,1772771544434,505.79542106,0.00012,2]
[407761032,1772771544462,502.32777902,0.00012,2]
[407761033,1772771545904,500.0,0.00012,2]
[407761034,1772771546020,500.0,0.00012,2]
[407761035,1772771546121,500.0,0.00010616,2]
[407761036,1772771546335,507.13807355,0.00010616,2]
[407761037,1772771547506,514.43382249,0.00012,2]
[407761038,1772771548158,282.33098537,0.00012,2]
[407761039,1772771548184,217.66901463,0.00012,2]
[407761040,1772771572013,500.0,0.00015599,2]
[407761041,1772771575146,315.17737389,0.00015526,2]
[407761042,1772771581632,300.0,0.00015615,2]
[407761043,1772771583014,300.0,0.00015615,2]
[407761044,1772771583044,300.0,0.00015615,2]
[407761045,1772771586052,278.95173371,0.00015615,2]
[407761046,1772771588030,2788.21187777,7.945e-05,2]
[407761047,1772771588052,5000.01,7.945e-05,2]
[407761048,1772771588074,1586.80483423,7.945e-05,2]
[407761049,1772771589971,2711.78265682,0.00015526,2]
[407761050,1772771590012,162.0,0.00015616,2]
[407761051,1772771594689,-7625.26900626,0.00015616,2]
[407761052,1772771594812,-10000.01,0.00015616,2]
[407761053,1772771594848,-10000.01,0.00015616,2]
[407761054,1772771594969,-10000.01,0.00015616,2]
[407761055,1772771595066,-10000.01,0.00015616,2]
[407761056,1772771595188,-10000.01,0.00015616,2]
[407761057,1772771595287,-10000.01,0.00015616,2]
[407761058,1772771595389,-10000.01,0.00015616,2]
[407761059,1772771595500,-10000.01,0.00015616,2]
[407761060,1772771595611,-10000.01,0.00015616,2]
[407761061,1772771601100,500.0,0.00015615,2]
[407761062,1772771601132,500.0,0.00015615,2]
[407761063,1772771601164,500.0,0.00015615,2]
[407761064,1772771601206,500.0,0.00015615,2]
[407761065,1772771601269,500.0,0.00015615,2]
[407761066,1772771601298,630.8234358,0.00015615,2]
[407761067,1772771607517,500.0,0.00015,7]
[407761068,1772771612583,1200.0,0.00015615,2]
[407761069,1772771617829,169.1865642,0.00015615,2]
[407761070,1772771617858,330.8134358,0.00015615,2]
[407761071,1772771617896,500.0,0.00015615,2]
[407761072,1772771638753,196.30944379,0.00015526,2]
[407761073,1772771641148,500.0,0.00015615,2]
[407761074,1772771641948,444.1157,0.00015516,2]
[407761075,1772771664099,500.0,0.00015615,2]
[407761076,1772771664406,212.89039254,0.00015615,2]
[407761077,1772771679139,500.0,0.00015615,2]
[407761078,1772771679175,500.0,0.00015615,2]
[407761079,1772771693441,500.0,0.00015615,2]
[407761080,1772771693487,500.0,0.00015615,2]
[407761081,1772771701238,315.88102787,0.00015615,2]
[407761082,1772771701260,884.11897213,0.00015615,2]
[407761083,1772771707880,500.0,0.00015615,2]
[407761084,1772771707923,500.0,0.00015615,2]
[407761085,1772771721491,500.0,0.00015615,2]
[407761086,1772771733892,500.0,0.00015515,2]
[407761087,1772771738312,500.0,0.00015615,2]
[407761088,1772771738363,296.7500662,0.00015615,2]
[407761089,1772771739107,500.0,0.00015615,2]
[407761090,1772771749027,500.0,0.00015615,2]
[407761091,1772771757568,319.14096167,0.00015526,2]
[407761092,1772771757588,5000.01,0.00015526,2]
[407761093,1772771757610,855.14133973,0.00015526,2]
[407761094,1772771758340,500.0,0.00015615,2]
[407761095,1772771758591,198.82968737,0.00015615,2]
[407761096,1772771761812,300.0,0.00015615,2]
[407761097,1772771762567,300.0,0.00015615,2]
[407761098,1772771762604,300.0,0.00015615,2]
[407761099,1772771765183,502.0,0.00014,2]
[407761100,1772771767989,1321.02,0.00015466,2]
[407761101,1772771770136,500.0,0.00015615,2]
[407761102,1772771776511,223.0189729,0.0001531,7]
[407761103,1772771776533,10.5053041,0.0001531,7]
[407761104,1772771776581,1155.62249075,0.00015526,2]
[407761105,1772771778446,-10000.01,0.00015616,2]
[407761106,1772771781525,500.0,0.00015615,2]
[407761107,1772771784423,-10000.01,0.00015616,2]
[407761108,1772771789104,506.0,0.00014,2]
[407761109,1772771807245,5000.01,0.000148,5]
[407761110,1772771807268,531.99,0.000148,5]
[407761111,1772771834938,2985.62,0.00015164,2]
[407761112,1772771836538,500.0,0.00012,2]
[407761113,1772771836578,500.0,0.00012,2]
[407761114,1772771836698,500.0,0.00012,2]
[407761115,1772771837020,500.0,0.00012,2]
[407761116,1772771837054,14.39,0.00012,2]
[407761117,1772771837082,485.61,0.00012,2]
[407761118,1772771837146,500.0,0.00012,2]
[407761119,1772771837172,500.0,0.00012,2]
[407761120,1772771837199,654.54092455,0.00010616,2]
[407761121,1772771837230,651.72850661,0.00012,2]
[407761122,1772771837515,500.0,0.00012,2]
[407761123,1772771837544,500.0,0.00012,2]
[407761124,1772771837657,500.0,0.00012,2]
[407761125,1772771838024,500.0,0.00012,2]
[407761126,1772771838054,500.0,0.00012,2]
[407761127,1772771838108,500.0,0.00012,2]
[407761128,1772771838339,4803.0,0.000147,5]
[407761129,1772771838501,500.0,0.00012,2]
[407761130,1772771838597,500.0,0.00010616,2]
[407761131,1772771839371,500.0,0.00012,2]
[407761132,1772771839402,500.0,0.00010616,2]
[407761133,1772771839455,500.0,0.00010616,2]
[407761134,1772771839618,500.0,0.00010616,2]
[407761135,1772771839649,500.0,0.00010616,2]
[407761136,1772771840046,500.0,0.00010616,2]
[407761137,1772771840130,500.0,0.00010616,2]
[407761138,1772771840536,500.0,0.00010616,2]
[407761139,1772771841747,500.0,0.00010616,2]
[407761140,1772771842021,500.0,0.00010616,2]
[407761141,1772771842125,500.0,0.00010616,2]
[407761142,1772771843007,500.0,0.00012,2]
[407761143,1772771843441,500.0,0.00012,2]
[407761144,1772771843475,500.0,0.00012,2]
[407761145,1772771844046,500.0,0.00010616,2]
[407761146,1772771844472,900.0,0.00010616,2]
[407761147,1772771844915,500.0,0.00012,2]
[407761148,1772771845419,649.59522589,0.00010616,2]
[407761149,1772771848580,800.0,0.00012,2]
[407761150,1772771849732,500.0,0.00012,2]
[407761151,1772771849843,500.0,0.00012,2]
[407761152,1772771850220,500.0,0.00012,2]
[407761153,1772771850676,503.40679,0.000101,2]
[407761154,1772771850907,500.0,0.00012,2]
[407761155,1772771851361,500.0,0.00012,2]
[407761156,1772771851401,504.57236014,0.000101,2]
[407761157,1772771852303,500.0,0.00012,2]
[407761158,1772771852355,501.42269066,0.00012,2]
[407761159,1772771853256,956.97667907,0.000101,2]
[407761161,1772771886529,159.0,0.00015461,2]
[407761162,1772771946700,160.0,0.00015461,2]
[407761163,1772771966364,183.62,0.00015042,3]
[407761164,1772771977660,509.0,0.00014,2]
[407761165,1772771991933,215.33,0.0001505,2]
[407761166,1772772020906,259.47,0.00014795,2]
[407761167,1772772107222,3513.59,0.000154,2]
[407761168,1772772107245,5000.01,0.000154,2]
[407761169,1772772110917,-513.61,0.000154,2]
[407761170,1772772111055,-1027.22,0.000154,2]
[407761171,1772772119452,504.0,0.00014,2]
[407761172,1772772122030,2945.57,0.000151,2]
[407761173,1772772135746,500.0,0.00012,2]
[407761174,1772772136382,500.0,0.00010461,2]
[407761175,1772772137156,500.0,0.00012,2]
[407761176,1772772137263,500.0,0.00012,2]
[407761177,1772772137409,500.0,0.00012,2]
[407761178,1772772137901,500.0,0.00010461,2]
[407761179,1772772138371,756.90364088,0.00010461,2]
[407761180,1772772144919,772.51415666,0.00012,2]
[407761181,1772772145461,500.0,0.00012,2]
[407761182,1772772145636,500.0,0.00012,2]
[407761183,1772772145995,500.0,0.000101,2]
[407761184,1772772147948,500.0,0.00012,2]
[407761185,1772772148086,500.0,0.00012,2]
[407761186,1772772158606,500.0,0.000101,2]
[407761187,1772772185296,507.0,0.00014,2]
[407761188,1772772218622,-500.26,0.00015461,2]
[407761189,1772772220704,6659.89,0.00014694,2]
[407761190,1772772237645,166.66,0.00013981,2]
[407761191,1772772237838,166.66,0.00014275,2]
[407761192,1772772238051,166.66,0.00014569,2]
[407761193,1772772238252,166.66,0.00014864,2]
[407761194,1772772238471,166.66,0.00015158,2]
[407761195,1772772238688,166.66,0.00015452,2]
[407761210,1772772323268,158.41,0.00015,2]
[407761211,1772772323610,158.41,0.00015,2]
[407761212,1772772343607,-279.0,0.00015471,2]
[407761213,1772772345527,159.85,0.00011764,2]
[407761214,1772772345562,159.85,0.00013235,2]
[407761215,1772772345627,159.85,0.00014705,2]
[407761216,1772772356609,-1778.02072578,0.00015471,2]
[407761217,1772772358302,1234.79613432,0.00015429,2]
[407761218,1772772358788,-3221.97927422,0.00015471,2]
[407761219,1772772358814,-500.0,0.00015471,2]
[407761220,1772772368210,2556.05145156,0.00015429,2]
[407761221,1772772368233,345.370859,0.00015429,2]
[407761222,1772772376390,150.0,0.00014726,2]
[407761223,1772772389433,-606.04,0.00015471,2]
[407761224,1772772390341,-300.0,0.00015493,2]
[407761225,1772772406426,-3148.01199716,0.00015494,2]
[407761226,1772772407097,2879.99,0.00014756,2]
[407761227,1772772421923,-200.0,0.00015507,2]
[407761228,1772772429130,-237.04122199,0.00015507,2]
[407761229,1772772435744,500.0,0.00012,2]
[407761230,1772772438471,-1317.26877801,0.00015507,2]
[407761231,1772772438510,-159.86,0.00015507,2]
[407761232,1772772445457,500.0,0.00012,2]
[407761233,1772772447768,500.0,0.00012,2]
[407761234,1772772451995,-1200.0,0.00015514,2]
[407761235,1772772452027,-300.0,0.00015514,2]
[407761236,1772772479128,504.0,0.00014,2]
[407761237,1772772481264,300.0,0.00015514,2]
[407761238,1772772482375,300.0,0.00015514,2]
[407761239,1772772512428,166.66,0.00015193,2]
[407761240,1772772565037,-1004.55602663,0.00015515,2]
[407761241,1772772565059,-4782.00480512,0.00015515,2]
[407761242,1772772575002,-1401.68070292,0.00015515,2]
[407761243,1772772575032,-300.0,0.00015515,2]
[407761244,1772772601154,1200.0,0.00015515,2]
[407761245,1772772603403,279.0,0.00015515,2]
[407761246,1772772607082,290.0,0.0001505,2]
[407761247,1772772624643,-185.72873171,0.00015516,2]
[407761252,1772772632258,-6727.27509278,0.00015516,2]
[407761253,1772772632270,-805.74439359,0.00015516,2]
[407761254,1772772632282,-1230.22,0.00015516,2]
[407761255,1772772632293,-1236.75051363,0.00015516,2]
[407761256,1772772632302,-709.23,0.00015516,2]
[407761257,1772772632311,-150.99,0.00015516,2]
[407761258,1772772632321,-7667.8329422,0.00015516,2]
[407761259,1772772632332,-2332.1570578,0.00015516,2]
[407761260,1772772632341,-5769.73640965,0.00015516,2]
[407761261,1772772632353,-1623.11679656,0.00015516,2]
[407761262,1772772632364,-500.0,0.00015516,2]
[407761263,1772772632379,-2107.13679379,0.00015516,2]
[407761264,1772772632389,-8997.9,0.00015516,2]
[407761265,1772772632398,-299.99,0.00015516,2]
[407761266,1772772632407,-516.46,0.00015516,2]
[407761267,1772772632417,-500.0,0.00015516,2]
[407761268,1772772632426,-2500.0,0.00015516,2]
[407761270,1772772632435,-380.97026973,0.00015526,2]
[407761271,1772772632444,-9999.99,0.00015529,2]
[407761272,1772772632453,-29999.99,0.00015529,2]
[407761273,1772772632462,-7288.86,0.00015529,2]
[407761274,1772772632472,-2319.54439373,0.00015529,2]
[407761275,1772772632483,-810.59415021,0.00015529,2]
[407761277,1772772632494,-487.0242411,0.00015529,2]
[407761280,1772772632513,-336.37939,0.00015529,2]
[407761282,1772772632523,-7211.0,0.00015529,2]
[407761284,1772772632534,-3894.1177145,0.00015529,2]
[407761288,1772772638322,-142861.02011046,0.00015529,2]
[407761289,1772772638332,-999.99,0.00015529,2]
[407761290,1772772638341,-499.99,0.00015529,2]
[407761291,1772772638350,-3426.56,0.00015529,2]
[407761292,1772772638362,-33119.72,0.00015529,2]
[407761293,1772772638371,-9999.99,0.00015529,2]
[407761294,1772772638380,-2989.5,0.00015529,2]
[407761295,1772772638389,-5700.0,0.00015589,2]
[407761296,1772772638405,-602.83855359,0.00015613,2]
[407761297,1772772638419,-602.83855359,0.00015613,2]
[407761298,1772772638438,-602.83855359,0.00015613,2]
[407761299,1772772638451,-602.83855359,0.00015613,2]
[407761300,1772772638464,-602.83855359,0.00015613,2]
[407761301,1772772638476,-602.83855359,0.00015613,2]
[407761302,1772772638490,-602.83855359,0.00015613,2]
[407761303,1772772638504,-602.83855359,0.00015613,2]
[407761304,1772772638518,-602.83855359,0.00015613,2]
[407761305,1772772638530,-602.83855359,0.00015613,2]
[407761306,1772772638541,-602.83855359,0.00015613,2]
[407761307,1772772638554,-602.83855359,0.00015613,2]
[407761308,1772772638567,-602.83855359,0.00015613,2]
[407761309,1772772638581,-602.83855359,0.00015613,2]
[407761310,1772772638595,-602.83855359,0.00015613,2]
[407761312,1772772638608,-602.83855359,0.00015613,2]
[407761314,1772772638624,-602.83855359,0.00015613,2]
[407761317,1772772638637,-602.83855359,0.00015613,2]
[407761319,1772772638653,-602.83855359,0.00015613,2]
[407761322,1772772638665,-602.83855359,0.00015613,2]
[407761324,1772772638678,-602.83855359,0.00015613,2]
[407761327,1772772638692,-602.83855359,0.00015613,2]
[407761329,1772772638705,-602.83855359,0.00015613,2]
[407761332,1772772638719,-602.83855359,0.00015613,2]
[407761335,1772772638735,-602.83855359,0.00015613,2]
[407761338,1772772638748,-602.83855359,0.00015613,2]
[407761341,1772772638761,-602.83855359,0.00015613,2]
[407761344,1772772638771,-602.83855359,0.00015613,2]
[407761347,1772772638782,-602.83855359,0.00015613,2]
[407761350,1772772638797,-602.83855359,0.00015613,2]
[407761355,1772772638810,-602.83855359,0.00015613,2]
[407761358,1772772638821,-602.83855359,0.00015613,2]
[407761361,1772772638831,-602.83855359,0.00015613,2]
[407761364,1772772638842,-602.83855359,0.00015613,2]
[407761369,1772772638859,-602.83855359,0.00015613,2]
[407761373,1772772638871,-602.83855359,0.00015613,2]
[407761376,1772772638881,-602.83855359,0.00015613,2]
[407761379,1772772638892,-602.83855359,0.00015613,2]
[407761381,1772772638904,-602.83855359,0.00015613,2]
[407761385,1772772638934,-602.83855359,0.00015613,2]
[407761388,1772772638946,-602.83855359,0.00015613,2]
[407761390,1772772638959,-602.83855359,0.00015613,2]
[407761394,1772772638983,-602.83855359,0.00015613,2]
[407761397,1772772639001,-602.83855359,0.00015613,2]
[407761399,1772772639016,-602.83855359,0.00015613,2]
[407761402,1772772639031,-602.83855359,0.00015613,2]
[407761404,1772772639046,-602.83855359,0.00015613,2]
[407761407,1772772639061,-602.83855359,0.00015613,2]
[407761409,1772772639075,-602.83855359,0.00015613,2]
[407761412,1772772639093,-602.83855359,0.00015613,2]
[407761414,1772772639109,-602.83855359,0.00015613,2]
[407761416,1772772639123,-602.83855359,0.00015613,2]
[407761417,1772772639137,-602.83855359,0.00015613,2]
[407761418,1772772639151,-602.83855359,0.00015613,2]
[407761419,1772772639167,-602.83855359,0.00015613,2]
[407761420,1772772639181,-500.0,0.00015614,2]
[407761421,1772772639194,-1058.20411011,0.00015615,5]
[407761422,1772772639208,-1240.99,0.00015615,2]
[407761423,1772772639222,-151.0,0.00015616,2]
[407761424,1772772639235,-151.0,0.00015616,2]
[407761425,1772772639248,-151.0,0.00015616,2]
[407761426,1772772639262,-151.0,0.00015616,2]
[407761427,1772772639275,-151.0,0.00015616,2]
[407761428,1772772639287,-151.0,0.00015616,2]
[407761429,1772772639301,-151.0,0.00015616,2]
[407761430,1772772639314,-151.0,0.00015616,2]
[407761431,1772772639330,-151.0,0.00015616,2]
[407761432,1772772639343,-151.0,0.00015616,2]
[407761433,1772772639356,-151.0,0.00015616,2]
[407761434,1772772639369,-200.0,0.00015616,2]
[407761435,1772772639381,-151.0,0.00015616,2]
[407761436,1772772639394,-151.0,0.00015616,2]
[407761437,1772772639407,-151.0,0.00015616,2]
[407761438,1772772639419,-151.0,0.00015616,2]
[407761439,1772772639431,-151.0,0.00015616,2]
[407761440,1772772639445,-151.0,0.00015616,2]
[407761441,1772772639459,-151.0,0.00015616,2]
[407761442,1772772639471,-151.0,0.00015616,2]
[407761443,1772772639484,-151.0,0.00015616,2]
[407761444,1772772639496,-151.0,0.00015616,2]
[407761445,1772772639509,-151.0,0.00015616,2]
[407761446,1772772639522,-151.0,0.00015616,2]
[407761447,1772772639535,-151.0,0.00015616,2]
[407761448,1772772639549,-151.0,0.00015616,2]
[407761449,1772772639561,-151.0,0.00015616,2]
[407761450,1772772639574,-151.0,0.00015616,2]
[407761451,1772772639588,-151.0,0.00015616,2]
[407761452,1772772639601,-151.0,0.00015616,2]
[407761453,1772772639613,-151.0,0.00015616,2]
[407761454,1772772639627,-151.0,0.00015616,2]
[407761455,1772772639641,-151.0,0.00015616,2]
[407761456,1772772639652,-200.0,0.00015616,2]
[407761457,1772772639664,-383.7,0.00015629,2]
[407761458,1772772639676,-5191.92,0.00015629,2]
[407761459,1772772639688,-166.66,0.00015694,2]
[407761460,1772772639701,-196.58679573,0.00015755,2]
[407761461,1772772639714,-1000.0,0.00015756,2]
[407761462,1772772639727,-32912.143,0.00015756,2]
[407761463,1772772639739,-200.0,0.00015772,2]
[407761464,1772772639750,-609.0,0.00015842,2]
[407761465,1772772639763,-252.0,0.00015842,2]
[407761466,1772772639776,-1168.0,0.00015848,2]
[407761467,1772772639787,-403.0,0.00015848,2]
[407761468,1772772639800,-1058.20411012,0.00015854,5]
[407761469,1772772639812,-163.908,0.00015854,2]
[407761470,1772772639824,-500.0,0.00015855,2]
[407761471,1772772639836,-500.0,0.00015855,2]
[407761472,1772772639848,-500.0,0.00015855,2]
[407761473,1772772639862,-500.0,0.00015855,2]
[407761474,1772772639875,-500.0,0.00015855,2]
[407761475,1772772639887,-500.0,0.00015855,2]
[407761476,1772772639899,-500.0,0.00015855,2]
[407761477,1772772639911,-500.0,0.00015855,2]
[407761478,1772772639924,-513.91619151,0.00015855,2]
[407761479,1772772639935,-229.66587475,0.00015855,2]
[407761480,1772772639947,-500.0,0.00015855,2]
[407761481,1772772639960,-231.1418293,0.00015855,2]
[407761482,1772772639972,-500.0,0.00015855,2]
[407761483,1772772639984,-500.0,0.00015855,2]
[407761484,1772772639996,-500.0,0.00015855,2]
[407761485,1772772640008,-500.0,0.00015855,2]
[407761486,1772772640020,-500.0,0.00015855,2]
[407761487,1772772640032,-500.0,0.00015855,2]
[407761488,1772772640044,-500.0,0.00015855,2]